{"text_format":"1","workbook":"xlsx","n_sheets":2,"sheets":["SYGBB_Nom","Do not edit 請勿修改"],"not_rendered":{"charts":0,"images":0,"macros":1,"external_links":0,"defined_names":1,"comments":0,"pivot_tables":0},"unopened":[],"bounds":{"document_bytes":16777216,"sheet_cells":100000,"rows_first":2000,"rows_last":500,"rows_between":2000,"halvings":0,"cell_chars":16384,"cell_head_chars":4096},"cells_cut":0,"cells_raw":0,"read":"whole","date_system":"1900"}

{"sheet":"SYGBB_Nom","index":0,"n_rows":56,"n_cols":18,"rows_kept":56,"cut":false,"hidden":false,"merged":[[18,1,18,3],[20,6,20,11],[18,6,18,11],[20,4,21,4],[19,6,19,11],[19,1,21,3],[55,1,55,11],[52,1,52,4],[53,1,53,4],[51,1,51,4],[53,5,53,7],[51,8,51,10],[52,8,52,10],[53,8,53,10],[54,1,54,11],[51,5,51,7],[52,5,52,7],[9,1,9,11],[13,1,13,11],[15,1,15,11],[16,1,16,11],[10,1,10,11],[11,1,11,11],[12,1,12,11],[50,5,50,11],[44,1,48,2],[37,11,38,11],[37,8,37,10],[37,1,38,3],[50,1,50,4],[39,1,43,2],[37,7,38,7],[28,1,28,2],[28,4,28,11],[24,4,24,11],[23,1,23,2],[25,4,25,11],[34,4,34,11],[35,4,35,11],[32,4,32,11],[33,4,33,11],[21,6,21,11],[20,5,21,5],[30,4,30,11],[26,4,26,11],[29,4,29,11],[31,4,31,11],[23,4,23,11],[22,1,22,11]]}
[]
[null,"ATTENTION",null,null,null,"WHITE BOX"]
[null,1,null,"Schools only need to fill in the WHITE BOXES, then save as \"WSCBB_Nom_YOUR SCHOOL ABBR.\""]
[null,2,null,"Send to \"external@hkssf.org.hk\".",null,null,null,null,"e.g. WSCBB_Nom_HKSSF\""]
[null,3,null,"Press \"Preview\" and \"Print\"."]
[null,4,null,"Sign by Principal and with the school chop on the nomination form."]
[null,5,null,"Fax to the HKSSF (External Office) at 2762 7662"]
[null,6,null,"Contact the HKSSF office at 2768 8212 for confirmation of receipt."]
[]
[null,"THE SCHOOLS SPORTS FEDERATION OF HONG KONG, CHINA"]
[null,"ISF World School Basketball Championship 2024"]
[null,"2024世界中學生籃球錦標賽 - 遴選 "]
[null,"23 June to 3 July 2024, Macao, China"]
[null,"Hong Kong Schools Basketball Team - Selection"]
[]
[null,"Nomination Form"]
[null,"Closing Date: 25 March 2024 (Mon)"]
[]
[null,"Category",null,null,"Selection ","Time","Venue"]
[null,"BOYS & GIRLS",null,null,"27 March 2024 (Wed)","15:00 - 18:00","CMA Secondary School                                                                                廠商會中學                                                                       "]
[null,null,null,null,"6 April 2024 (Sat)","13:00 – 17:00","298 Nam Cheong Street, Pak Tin, Kowloon"]
[null,null,null,null,null,null,"九龍白田南昌街298號"]
[null,"All member secondary schools are welcomed to nominate elite athletes to participate:"]
[null,"Criteria",null,1,"Resided in Hong Kong for a minimum of 3 years and holding a valid Hong Kong Identity Document ;"]
[null,null,null,2,"Full-time students of the HKSSF member secondary schools in 2023-2024 academic years ;"]
[null,null,null,3,"Must be born between 1 January 2006 and 31 December 2008 ;"]
[null,null,null,4,"According to HKSSF By-Laws & Rules 1.4, transfer student without valid Student Athlete Registration Card would NOT be allowed to participate in the Selection Trial/Competition."]
[]
[null,"Note",null,1,"This is the first time ever for HKSSF to send teams to participate in World Basketball Championship as school level organised by International School Sport Federation (ISF) ;"]
[null,null,null,2,"All HK Inter-Secondary Schools 3 x 3 Basketball Marathon organised by HKSSF will be tentatively scheduled to be held between 24 June and 13 July 2024 ; HKSSF would try the best endeavour to arrange Senior Grade competitions to be started at later stage to avoid clash with WSCBB ;"]
[null,null,null,3,"FIBA U18 Women’s Asian Championship (participated by Basketball Association of Hong Kong, China) will be held between 24 June and 30 June 2024 in Shenzhen, U18 Men’s category will be tentatively scheduled in June 2024 ; "]
[null,null,null,4,"Participants are advised to visit HKSSF’s website (www.hkssf.org.hk) on 26 March 2024 (Tuesday) between 12:00n.n. to 1:00p.m. to check the selection trial participating list. There will be no further reminder to be sent to the participating schools ;"]
[null,null,null,5,"Participants must show valid Student Athlete Registration Card when reporting to the Selection Trial ;"]
[null,null,null,6,"Pre-competition training will be held from April to June 2024, details of which will be announced later on event website ;"]
[null,null,null,7,"Selected team members must attend all training sessions and may not withdraw from the competition,  unless there are exceptional reasons (supporting letter from respective school is required);"]
[null,null,null,8,"Basketball Technical & Selection Sub-committee reserves the right in making final decisions on selection of the squad."]
[]
[null,"Category",null,null,"Name in English","中文姓名","Class","Will be Full Time Secondary Sch. Student in     2023-2024","Date of Birth",null,null,"Main Position"]
[null,null,null,null,"(Same as HKID Card)","(必須與香港身份證相同)","2023-2024",null,"DD","MM","YYYY"]
[null,"GIRLS",null,1,null,null,null,null,null,null,null,null,"F",null,"Only 14 July ","Center","Yes"]
[null,null,null,2,null,null,null,null,null,null,null,null,"F",null,"Only 18 July ","Power Forward","No"]
[null,null,null,3,null,null,null,null,null,null,null,null,"F",null,"Both 14 &18 July ","Small Forward"]
[null,null,null,4,null,null,null,null,null,null,null,null,"F",null,"Do not participate","Shooting Guard"]
[null,null,null,5,null,null,null,null,null,null,null,null,"F",null,null,"Point Guard"]
[null,"BOYS",null,1,null,null,null,null,null,null,null,null,"B",null,"C"]
[null,null,null,2,null,null,null,null,null,null,null,null,"B",null,"D"]
[null,null,null,3,null,null,null,null,null,null,null,null,"B"]
[null,null,null,4,null,null,null,null,null,null,null,null,"B"]
[null,null,null,5,null,null,null,null,null,null,null,null,"B"]
[]
[null,"Name of School"]
[null,"Teacher-in-Charge",null,null,null,null,null,null,"TIC Mobile No."]
[null,"Name of Principal",null,null,null,null,null,null,"Date",null,null,null,null,null,null,null,null," "]
[null,"Signature of Principal",null,null,null,null,null,null,"School Chop"]
[null,"Please contact the HKSSF office at 2768 8212 after submitting this Form for confirmation of receipt."]
[null,"HKSSF will not be responsible for any missing nomination."]

{"sheet":"Do not edit 請勿修改","index":1,"n_rows":11,"n_cols":14,"rows_kept":11,"cut":false,"hidden":false,"merged":[]}
[null,null,"School","Name in English","中文姓名","Class 2022-2023","Full Time 2023-2024","DD","MM","YYYY","HKBA overseas competition / training","Main Position","Teacher-in-Charge","TIC Mobile No."]
["Girls",1,{"$f":"SYGBB_Nom!F51","v":0},{"$f":"SYGBB_Nom!E40","v":0},{"$f":"SYGBB_Nom!F40","v":0},{"$f":"SYGBB_Nom!G40","v":0},{"$f":"SYGBB_Nom!H40","v":0},{"$f":"SYGBB_Nom!I40","v":0},{"$f":"SYGBB_Nom!J40","v":0},{"$f":"SYGBB_Nom!K40","v":0},{"$f":"SYGBB_Nom!#REF!","v":{"$error":"#REF!"}},{"$f":"SYGBB_Nom!L40","v":0},{"$f":"SYGBB_Nom!F52","v":0},{"$f":"SYGBB_Nom!#REF!","v":{"$error":"#REF!"}}]
["Girls",2,{"$f":"SYGBB_Nom!F51","v":0},{"$f":"SYGBB_Nom!E41","v":0},{"$f":"SYGBB_Nom!F41","v":0},{"$f":"SYGBB_Nom!G41","v":0},{"$f":"SYGBB_Nom!H41","v":0},{"$f":"SYGBB_Nom!I41","v":0},{"$f":"SYGBB_Nom!J41","v":0},{"$f":"SYGBB_Nom!K41","v":0},{"$f":"SYGBB_Nom!#REF!","v":{"$error":"#REF!"}},{"$f":"SYGBB_Nom!L41","v":0},{"$f":"M2","v":0},{"$f":"N2","v":{"$error":"#REF!"}}]
["Girls",3,{"$f":"SYGBB_Nom!F51","v":0},{"$f":"SYGBB_Nom!E42","v":0},{"$f":"SYGBB_Nom!F42","v":0},{"$f":"SYGBB_Nom!G42","v":0},{"$f":"SYGBB_Nom!H42","v":0},{"$f":"SYGBB_Nom!I42","v":0},{"$f":"SYGBB_Nom!J42","v":0},{"$f":"SYGBB_Nom!K42","v":0},{"$f":"SYGBB_Nom!#REF!","v":{"$error":"#REF!"}},{"$f":"SYGBB_Nom!L42","v":0},{"$f":"M3","v":0},{"$f":"N3","v":{"$error":"#REF!"}}]
["Girls",4,{"$f":"SYGBB_Nom!F51","v":0},{"$f":"SYGBB_Nom!E43","v":0},{"$f":"SYGBB_Nom!F43","v":0},{"$f":"SYGBB_Nom!G43","v":0},{"$f":"SYGBB_Nom!H43","v":0},{"$f":"SYGBB_Nom!I43","v":0},{"$f":"SYGBB_Nom!J43","v":0},{"$f":"SYGBB_Nom!K43","v":0},{"$f":"SYGBB_Nom!#REF!","v":{"$error":"#REF!"}},{"$f":"SYGBB_Nom!L43","v":0},0,{"$error":"#REF!"}]
["Girls",5,{"$f":"SYGBB_Nom!F51","v":0},{"$f":"SYGBB_Nom!E44","v":0},{"$f":"SYGBB_Nom!F44","v":0},{"$f":"SYGBB_Nom!G44","v":0},{"$f":"SYGBB_Nom!H44","v":0},{"$f":"SYGBB_Nom!I44","v":0},{"$f":"SYGBB_Nom!J44","v":0},{"$f":"SYGBB_Nom!K44","v":0},{"$f":"SYGBB_Nom!#REF!","v":{"$error":"#REF!"}},{"$f":"SYGBB_Nom!L44","v":0},0,{"$error":"#REF!"}]
["Boys",6,{"$f":"SYGBB_Nom!F51","v":0},{"$f":"SYGBB_Nom!E45","v":0},{"$f":"SYGBB_Nom!F45","v":0},{"$f":"SYGBB_Nom!G45","v":0},{"$f":"SYGBB_Nom!H45","v":0},{"$f":"SYGBB_Nom!I45","v":0},{"$f":"SYGBB_Nom!J45","v":0},{"$f":"SYGBB_Nom!K45","v":0},{"$f":"SYGBB_Nom!#REF!","v":{"$error":"#REF!"}},{"$f":"SYGBB_Nom!L45","v":0},0,{"$error":"#REF!"}]
["Boys",7,{"$f":"SYGBB_Nom!F51","v":0},{"$f":"SYGBB_Nom!E46","v":0},{"$f":"SYGBB_Nom!F46","v":0},{"$f":"SYGBB_Nom!G46","v":0},{"$f":"SYGBB_Nom!H46","v":0},{"$f":"SYGBB_Nom!I46","v":0},{"$f":"SYGBB_Nom!J46","v":0},{"$f":"SYGBB_Nom!K46","v":0},{"$f":"SYGBB_Nom!#REF!","v":{"$error":"#REF!"}},{"$f":"SYGBB_Nom!L46","v":0},0,{"$error":"#REF!"}]
["Boys",8,{"$f":"SYGBB_Nom!F51","v":0},{"$f":"SYGBB_Nom!E47","v":0},{"$f":"SYGBB_Nom!F47","v":0},{"$f":"SYGBB_Nom!G47","v":0},{"$f":"SYGBB_Nom!H47","v":0},{"$f":"SYGBB_Nom!I47","v":0},{"$f":"SYGBB_Nom!J47","v":0},{"$f":"SYGBB_Nom!K47","v":0},{"$f":"SYGBB_Nom!#REF!","v":{"$error":"#REF!"}},{"$f":"SYGBB_Nom!L47","v":0},0,{"$error":"#REF!"}]
["Boys",9,{"$f":"SYGBB_Nom!F51","v":0},{"$f":"SYGBB_Nom!E48","v":0},{"$f":"SYGBB_Nom!F48","v":0},{"$f":"SYGBB_Nom!G48","v":0},{"$f":"SYGBB_Nom!H48","v":0},{"$f":"SYGBB_Nom!I48","v":0},{"$f":"SYGBB_Nom!J48","v":0},{"$f":"SYGBB_Nom!K48","v":0},{"$f":"SYGBB_Nom!#REF!","v":{"$error":"#REF!"}},{"$f":"SYGBB_Nom!L48","v":0},0,{"$error":"#REF!"}]
["Boys",10,{"$f":"SYGBB_Nom!F51","v":0},{"$f":"SYGBB_Nom!E49","v":0},{"$f":"SYGBB_Nom!F49","v":0},{"$f":"SYGBB_Nom!G49","v":0},{"$f":"SYGBB_Nom!H49","v":0},{"$f":"SYGBB_Nom!I49","v":0},{"$f":"SYGBB_Nom!J49","v":0},{"$f":"SYGBB_Nom!K49","v":0},{"$f":"SYGBB_Nom!#REF!","v":{"$error":"#REF!"}},{"$f":"SYGBB_Nom!L49","v":0},0,{"$error":"#REF!"}]